bitfinex-derivatives/quotes_ETHF0:USTF0_20250520
["timestamp","ask_amount","ask_price","bid_price","bid_amount"]
[1747771352520,0.80188,2493.1,2493.0,0.80191]
[1747771352712,2.20758,2493.1,2493.0,18.28991]
[1747771352912,2.20758,2493.1,2493.0,17.488]
[1747771353320,4.213155,2493.1,2493.0,17.488]
[1747771353527,0.80198,2492.8,2492.7,0.0060148]
[1747771353826,4.00978,2492.8,2492.7,17.4930148]
[1747771354024,6.015595,2492.8,2492.7,17.4930148]
[1747771354822,11.015595,2492.8,2492.7,4.8e-06]
[1747771355029,11.015595,2492.8,2491.5,17.487]
[1747771355030,0.8023,2491.8,2491.5,17.487]
[1747771355218,0.8023,2491.8,2491.4,0.89473312]
[1747771355219,4.0101,2491.8,2491.4,0.89473312]
[1747771355418,6.01672,2491.8,2491.4,0.89473312]
[1747771355825,0.80228,2491.9,2491.8,0.8023]
[1747771356020,1.4223,2492.0,2491.9,0.80227]
[1747771356225,3.2078,2492.1,2491.7,17.80796117]
[1747771356425,3.2078,2492.4,2491.7,19.81379117]
[1747771356729,0.80222,2492.1,2492.0,0.80222]
[1747771357224,3.2078,2492.4,2491.8,1.71446117]
[1747771357423,1.46735625,2492.1,2491.8,1.67564071]
[1747771357624,0.80224,2492.0,2491.9,0.80225]
[1747771357925,1.46735625,2492.1,2492.0,0.80224]
[1747771358127,0.80224,2492.0,2491.9,0.80225]
[1747771358328,0.80224,2492.0,2491.9,17.57625]
[1747771358525,4.67515625,2492.1,2492.0,0.80224]
[1747771358828,4.01003,2492.1,2492.0,17.57624]
[1747771359133,4.01003,2492.1,2492.0,0.80224]
[1747771359325,3.2078,2492.1,2491.6,5.97e-06]
[1747771359532,3.2078,2491.7,2490.9,2.00645]
[1747771359718,0.24804751,2492.0,2491.3,0.80246]
[1747771359719,3.2078,2491.4,2491.3,0.80246]
[1747771360029,0.80233,2491.8,2491.7,0.80233]
[1747771360225,3.2078,2491.9,2491.4,4.5789]
[1747771360426,3.2078,2491.9,2491.4,1.37510575]
[1747771360731,4.0161048,2491.9,2491.8,0.8023]
[1747771360931,3.2138148,2491.9,2491.8,0.8023]
[1747771361132,3.2138148,2491.9,2491.8,17.5773]
[1747771361331,4.0160848,2491.9,2491.8,17.5773]
[1747771361736,0.80256,2491.0,2490.9,0.72737491]
[1747771361930,3.2078,2491.6,2490.9,2.73386491]
[1747771362126,3.2078,2491.5,2491.0,1.4121]
[1747771362329,3.2078,2491.5,2491.1,17.514]
[1747771362631,0.80249,2491.2,2491.1,0.80251]
[1747771362837,0.80244,2491.4,2491.3,0.80244]
[1747771363229,0.80247,2491.3,2491.2,0.80247]
[1747771363430,0.80247,2491.3,2491.2,2.21457]
[1747771363641,0.80245,2491.4,2491.3,0.80246]
[1747771363932,0.80246,2491.4,2491.3,0.80245]
[1747771364533,0.80246,2491.3,2491.2,2.21457]
[1747771364733,3.2078,2491.5,2491.2,1.4121]
[1747771364933,0.80244,2491.4,2491.3,2.09065]
[1747771365129,0.80244,2491.4,2491.3,1.2882]
[1747771365929,0.80244,2491.4,2491.3,2.09066]
[1747771366133,3.2078,2491.5,2491.4,0.80243]
[1747771366336,4.0102,2491.5,2491.4,0.80243]
[1747771367431,3.2078,2491.5,2491.4,0.80243]
[1747771369638,4.0102,2491.5,2491.4,0.80243]
[1747771370340,3.87292625,2491.8,2491.7,0.80233]
[1747771370839,3.2078,2491.8,2491.7,0.80233]
[1747771371334,3.2078,2491.8,2491.4,0.80243]
[1747771371335,0.8024,2491.5,2491.4,17.519]
[1747771371539,4.0102,2491.5,2491.4,17.519]
[1747771372240,6.01706501,2491.5,2491.4,17.519]
[1747771372443,0.80246,2491.3,2491.2,0.32098954]
[1747771372841,0.80246,2491.3,2490.6,0.54579573]
[1747771372842,9.013215,2491.3,2490.6,0.54579573]
[1747771373146,4.01046,2490.7,2490.6,0.54579573]
[1747771373338,9.01046,2490.7,2490.6,0.54579573]
[1747771373635,6.01797,2490.7,2490.6,0.54579573]
[1747771374036,0.80278,2490.3,2490.2,0.80281]
[1747771374338,4.01058,2490.3,2490.2,0.88767477]
[1747771374640,0.0060148,2490.5,2490.4,0.80275]
[1747771374842,4.8e-06,2490.5,2490.4,0.80275]
[1747771375038,4.8e-06,2490.5,2490.4,7.10065]
[1747771375234,3.2078,2491.0,2490.6,0.01032513]
[1747771375443,5.215185,2491.0,2490.6,0.01032513]
[1747771375643,1.2939,2490.9,2490.7,0.80264]
[1747771375840,1.2939,2490.9,2490.8,0.80262]
[1747771376541,1.2939,2490.9,2490.6,0.01633993]
[1747771376542,0.80266,2490.7,2490.6,0.01633993]
[1747771376735,4.01046,2490.7,2490.6,0.01633993]
[1747771377039,4.01046,2490.7,2490.1,0.36450836]
[1747771377040,0.80282,2490.2,2490.1,0.36450836]
[1747771377249,4.01062,2490.2,2490.1,0.36450836]
[1747771377540,6.01853,2490.2,2490.1,0.36450836]
[1747771378245,6.01853,2490.2,2489.8,17.523]
[1747771378246,0.80291,2489.9,2489.8,17.523]
[1747771378541,4.01071,2489.9,2489.8,17.523]
[1747771378736,6.018865,2489.9,2489.8,17.523]
[1747771379042,3.2078,2489.9,2489.8,18.32595]
[1747771379547,6.018885,2489.9,2489.6,0.88786477]
[1747771379748,1.2949,2489.8,2489.7,17.523]
[1747771380048,2.09785,2489.8,2489.7,17.523]
[1747771380352,1.2949,2489.8,2489.7,0.80298]
[1747771380744,3.2078,2490.2,2490.1,0.80285]
[1747771381043,0.7474,2490.9,2490.3,2.00697]
[1747771381044,1.2949,2490.7,2490.3,2.00697]
[1747771381250,1.2949,2490.7,2490.6,0.80269]
[1747771381445,3.2078,2490.9,2490.8,0.80262]
[1747771381649,0.66512625,2491.3,2491.2,0.80249]
[1747771381850,0.66512625,2491.3,2490.8,2.00657]
[1747771382049,0.80249,2491.2,2491.1,17.526]
[1747771382245,6.01461625,2491.2,2491.1,17.526]
[1747771382445,8.02172125,2491.2,2491.1,17.526]
[1747771383049,5.21212625,2491.2,2491.1,18.32853]
[1747771384053,5.21212625,2491.2,2490.9,0.0060148]
[1747771384054,7.21923125,2491.2,2490.9,0.0060148]
[1747771384351,7.21923125,2491.2,2490.6,0.36450836]
[1747771384559,3.2078,2490.9,2490.8,0.8026]
[1747771385552,3.2078,2490.9,2490.8,1.12364832]
[1747771386152,1.3392,2491.2,2491.1,0.80253]
[1747771386347,1.3392,2491.2,2491.1,18.32753]
[1747771386655,1.3392,2491.2,2491.1,18.64857832]
[1747771386853,4.547,2491.2,2491.1,18.64857832]
[1747771387559,7.356595,2491.2,2491.1,17.84604832]
[1747771387853,0.80256,2491.0,2490.9,17.525]
[1747771388055,4.547,2491.2,2490.6,19.29110836]
[1747771388356,3.2078,2490.8,2490.7,0.80266]
[1747771388558,4.547,2491.2,2491.1,0.80253]
[1747771389061,4.547,2491.2,2491.1,18.32753]
[1747771389450,0.80256,2491.1,2490.9,1.3353]
[1747771389651,1.3842,2491.0,2490.9,2.13789]
[1747771389949,1.3842,2491.0,2490.9,19.66289]
[1747771390462,0.0060148,2491.4,2490.9,21.1878104]
[1747771390656,0.0060148,2491.4,2491.3,0.80246]
[1747771391251,0.80256,2491.0,2490.9,0.3210304]
[1747771391460,4.01036,2491.0,2490.9,0.3210304]
[1747771391647,6.017625,2491.0,2490.9,0.3210304]
[1747771391848,6.017625,2491.0,2490.3,0.72737491]
[1747771391849,0.80275,2490.4,2490.3,0.72737491]
[1747771392058,0.80295,2489.8,2489.7,0.72737491]
[1747771392554,2.811185,2489.8,2489.7,0.72737491]
[1747771393353,2.008235,2489.8,2489.6,0.803]
[1747771393662,1.325,2489.7,2489.6,0.803]
[1747771393857,1.325,2489.7,2489.4,19.2265]
[1747771393858,0.80304,2489.5,2489.4,18.4442]
[1747771394055,0.80304,2489.5,2489.4,17.1]
[1747771394258,0.80304,2489.5,2489.4,17.90308]
[1747771394556,4.5328,2489.7,2489.6,0.80301]
[1747771394557,3.2078,2489.7,2489.6,0.80301]
[1747771394757,0.0060148,2490.0,2489.9,0.80291]
[1747771394966,0.0060148,2490.0,2489.9,17.90391]
[1747771396559,0.8088948,2490.0,2489.9,17.90391]
[1747771396963,0.8088948,2490.0,2489.9,17.101]
[1747771397170,0.0060148,2490.0,2489.9,17.90391]
[1747771397660,0.66512625,2490.8,2489.9,25.3088]
[1747771397857,2.00681,2490.5,2490.0,1.4051]
[1747771398058,0.80283,2490.2,2490.1,0.80284]
[1747771398258,1.3009,2490.4,2490.1,17.103]
[1747771398456,1.3009,2490.4,2490.1,17.90582]
[1747771398763,1.3009,2490.4,2490.1,17.103]
[1747771398956,0.80282,2490.2,2490.1,17.90582]
[1747771399167,0.80285,2490.1,2490.0,0.0060148]
[1747771399358,2.10375,2490.1,2490.0,17.1080148]
[1747771399564,4.11174,2490.1,2490.0,0.09087957]
[1747771399867,1.3009,2490.1,2490.0,0.09087957]
[1747771400169,2.10375,2490.1,2490.0,0.09087957]
[1747771400359,3.2078,2490.2,2490.0,1.49597957]
[1747771400667,4.01062,2490.2,2490.1,17.102]
[1747771401267,4.01062,2490.2,2490.1,16.98114139]
[1747771401472,0.80285,2490.1,2490.0,0.0060148]
[1747771401660,2.11765,2490.1,2490.0,0.0060148]
[1747771401963,9.12564,2490.1,2490.0,0.0060148]
[1747771402264,9.12564,2490.1,2490.0,4.8e-06]
[1747771403075,26.47740307,2490.1,2490.0,4.8e-06]
[1747771403257,26.47731152,2490.1,2490.0,4.8e-06]
[1747771403663,26.47731152,2490.1,2488.8,0.72737491]
[1747771403664,0.80324,2488.9,2488.8,0.72737491]
[1747771403865,6.02,2488.9,2488.8,0.72737491]
[1747771404057,3.2078,2488.9,2488.8,0.72737491]
[1747771404263,4.01104,2488.9,2488.8,2.85384491]
[1747771404456,3.2078,2488.9,2488.8,2.85384491]
[1747771404666,6.02,2488.9,2488.8,0.72737491]
[1747771404858,2.8122,2488.9,2488.8,0.32132367]
[1747771405059,0.80327,2488.8,2488.7,0.27482183]
[1747771405257,2.21667,2488.8,2488.7,0.27482183]
[1747771405463,1.4134,2488.8,2488.7,0.27482183]
[1747771405868,2.21667,2488.8,2488.7,0.27482183]
[1747771406066,1.4134,2488.8,2488.7,0.27482183]
[1747771406262,3.42244,2488.8,2488.7,0.27482183]
[1747771406468,1.4134,2488.8,2488.7,1.07812183]
[1747771406673,2.21667,2488.8,2488.7,0.8033]
[1747771407068,3.2078,2489.0,2488.9,0.80324]
[1747771407566,5.3926,2489.0,2488.9,17.90924]
[1747771408571,6.59828,2489.0,2488.6,17.109]
[1747771408761,0.80333,2488.6,2488.5,1.83e-06]
[1747771408965,7.26340625,2489.0,2488.5,1.83e-06]
[1747771409267,3.87292625,2489.0,2488.9,0.37613684]
[1747771409463,3.87292625,2489.0,2488.9,0.80324]
[1747771409662,5.88180625,2489.0,2488.9,0.80324]
[1747771409865,3.87292625,2489.0,2488.6,1.368]
[1747771410070,0.80328,2488.8,2488.6,2.17131]
[1747771410272,0.80328,2488.8,2488.6,19.28031]
[1747771410572,0.8033,2488.7,2488.6,18.477]
[1747771411071,0.80329,2488.8,2488.6,19.28032]
[1747771411372,0.80338,2488.5,2488.0,2.92084744]
[1747771411575,4.01101,2489.0,2488.2,3.2078]
[1747771411764,4.01101,2489.0,2488.9,0.80324]
[1747771412169,6.01989,2489.0,2488.9,0.80324]
[1747771412367,10.21668,2489.0,2488.6,17.11]
[1747771412674,4.0111,2488.7,2488.6,17.11]
[1747771413067,6.02022001,2488.7,2488.6,17.11]
[1747771413266,27.32692001,2488.7,2487.6,1.53102491]
[1747771413575,3.2078,2487.7,2487.6,0.80366]
[1747771413964,5.21773,2487.7,2487.5,1.33800015]
[1747771414180,6.02135,2487.7,2487.6,0.80366]
[1747771414374,0.80366,2487.6,2487.5,1.33800015]
[1747771414777,2.81367001,2487.6,2487.5,1.25313538]
[1747771415372,2.01001001,2487.6,2487.5,2.05682538]
[1747771415676,2.01001001,2487.6,2487.5,2.19349]
[1747771416379,2.01001001,2487.6,2486.9,2.16700765]
[1747771416574,3.2078,2487.6,2487.2,17.112]
[1747771416874,0.80369,2487.5,2487.3,1.3084]
[1747771417079,3.2078,2487.6,2487.5,0.80369]
[1747771417374,5.21789,2487.6,2486.9,2.16857946]
[1747771417674,0.80373,2487.4,2487.0,0.32148261]
[1747771417885,3.2078,2487.6,2487.0,0.32148261]
[1747771418183,0.80382,2487.1,2487.0,0.32148261]
[1747771418570,2.814235,2487.1,2487.0,0.32148261]
[1747771418975,3.2078,2487.3,2487.0,5.32148261]
[1747771419181,3.2078,2487.3,2487.1,0.80379]
[1747771419373,5.218215,2487.3,2486.9,17.115]
[1747771419882,0.80388,2486.9,2486.8,2.1857]
[1747771420083,7.227625,2487.3,2486.8,2.1857]
[1747771420279,0.80392,2486.8,2486.7,0.32148261]
[1747771420576,0.80391,2486.9,2486.8,0.80392]
[1747771420782,3.2078,2487.0,2486.9,0.80388]
[1747771420976,8.2078,2487.0,2486.6,0.32148261]
[1747771421179,5.218415,2487.0,2486.6,0.32148261]
[1747771421377,3.2078,2487.0,2486.9,0.80388]
[1747771421583,5.218415,2487.0,2486.9,0.80388]
[1747771421784,5.218415,2487.0,2486.6,1.3818]
[1747771421991,0.80388,2486.9,2486.8,0.80392]
[1747771422381,2.01057501,2486.9,2486.8,0.80392]
[1747771422576,3.2078,2487.0,2486.9,0.80388]
[1747771422986,5.218295,2487.0,2486.9,0.80388]
[1747771423176,5.218295,2487.0,2486.7,0.32148261]
[1747771423388,0.80391,2486.8,2486.7,1.12541261]
[1747771423589,5.218295,2487.0,2486.7,0.32148261]
[1747771423886,6.022165,2487.0,2486.9,0.80388]
[1747771424088,0.80388,2486.9,2486.8,2.12769]
[1747771424287,5.218295,2487.0,2486.9,0.80388]
[1747771424489,0.80388,2486.9,2486.8,2.12771]
[1747771425192,0.80388,2486.9,2486.5,2.01001]
[1747771425491,5.21746,2487.0,2486.3,22.86786383]
[1747771425693,0.80399,2486.6,2486.5,0.80398]
[1747771425991,0.80397,2486.7,2486.6,0.80396]
[1747771426491,1.3765,2486.9,2486.4,2.331694]
[1747771426682,1.3765,2486.9,2486.8,0.80391]
[1747771427190,1.3765,2486.9,2486.8,18.09091]
[1747771427389,0.80389,2486.9,2486.8,0.80388]
[1747771427696,0.80398,2486.6,2486.5,1.125594]
[1747771427991,0.80398,2486.6,2486.5,0.321594]
[1747771428188,2.8148,2486.6,2486.5,0.321594]
[1747771428395,4.1669,2486.6,2486.5,0.35680203]
[1747771428592,4.1669,2486.6,2486.0,3.2078]
[1747771428593,0.80408,2486.3,2485.5,1.67743312]
[1747771428792,4.01201,2485.9,2485.5,0.89473312]
[1747771429094,4.01201,2485.9,2485.8,4.91e-06]
[1747771429387,11.023395,2485.9,2485.8,4.91e-06]
[1747771429788,6.023395,2485.9,2485.8,4.91e-06]
[1747771430585,5.219185,2485.9,2485.8,0.80424491]
[1747771430783,3.2078,2485.9,2485.8,0.80424]
[1747771430984,4.5599,2486.2,2485.8,16.09314]
[1747771431183,4.5599,2486.2,2485.9,1.3687]
[1747771431392,4.5599,2486.2,2485.9,2.1729]
[1747771431595,0.80416,2486.1,2485.9,1.3687]
[1747771431795,3.2078,2486.2,2486.1,0.80414]
[1747771432589,0.006027,2486.3,2486.2,0.80411]
[1747771432895,0.006027,2486.3,2486.2,19.46381]
[1747771433091,0.006027,2486.3,2486.2,24.46381]
[1747771433694,0.006027,2486.3,2486.2,25.0128494]
[1747771433893,0.006027,2486.3,2486.2,1.3531494]
[1747771434198,0.006027,2486.3,2486.2,18.6441494]
[1747771434395,0.006027,2486.3,2486.2,23.6441494]
[1747771434894,0.006027,2486.3,2486.2,23.09511]
[1747771435091,7e-06,2486.3,2486.2,23.09511]
[1747771435301,3.2078,2487.0,2486.9,0.80388]
[1747771435598,3.2078,2487.0,2486.9,18.09588]
[1747771435599,5.40775,2487.0,2486.9,18.09588]
[1747771436190,5.40775,2487.0,2486.9,0.80388]
[1747771436395,6.614395,2487.0,2486.7,0.006027]
[1747771436602,4.6039,2487.0,2486.7,0.006027]
[1747771437096,6.61447501,2487.0,2486.7,0.006027]
[1747771437595,0.80391,2486.8,2486.7,0.006027]
[1747771438595,0.8039,2486.9,2486.7,0.006027]
[1747771438797,4.6039,2487.0,2486.7,0.006027]
[1747771438798,4.6039,2487.0,2486.9,0.80388]
[1747771439195,7.418265,2487.0,2486.9,0.80388]
[1747771439698,6.614395,2487.0,2486.8,2.68057495]
[1747771439899,0.80388,2486.9,2486.8,1.87667495]
[1747771440101,1.3771,2486.9,2486.8,2.68058495]
[1747771440297,0.006027,2487.2,2486.9,0.80388]
[1747771440495,5.38101546,2488.0,2487.5,0.80369]
[1747771440696,1.3521,2487.9,2487.7,0.80362]
[1747771441198,3.52531546,2487.9,2487.6,19.65029178]
[1747771441395,3.52531546,2487.9,2487.8,0.80359]
[1747771441802,1.96662672,2488.4,2487.8,5.0]
[1747771442105,1.96662672,2488.4,2488.3,0.80343]
[1747771442304,1.96662672,2488.4,2488.3,18.09443]
[1747771442690,1.96662672,2488.4,2488.3,18.41591686]
[1747771443097,2.77002672,2488.4,2488.3,17.61248686]
[1747771443291,5.17442672,2488.4,2488.3,17.61248686]
[1747771443501,1.3521,2488.5,2488.3,16.33181038]
[1747771443998,1.3521,2488.5,2488.4,0.8034]
[1747771444199,1.3521,2488.5,2488.3,16.33181038]
[1747771444401,1.3521,2488.5,2488.4,0.8034]
[1747771444906,1.3521,2488.5,2488.3,16.33181038]
[1747771445098,1.3521,2488.5,2488.3,17.13522038]
[1747771445299,0.8034,2488.4,2488.3,16.33181038]
[1747771445606,0.8034,2488.4,2488.3,16.56101606]
[1747771445802,0.8034,2488.4,2488.3,17.36444606]
[1747771446095,0.8034,2488.4,2488.3,16.56101606]
[1747771446495,1.3521,2488.5,2488.3,16.56101606]
[1747771446699,0.8034,2488.4,2488.3,16.56101606]
[1747771447003,0.8034,2488.4,2488.3,16.33169886]
[1747771447597,1.3521,2488.5,2488.3,16.33169886]
[1747771447804,1.3521,2488.5,2488.4,0.8034]
[1747771448102,1.3521,2488.5,2488.3,0.32137534]
[1747771448402,0.80343,2488.3,2488.2,0.55069254]
[1747771448900,2.812875,2488.3,2488.2,0.55069254]
[1747771449107,4.218375,2488.3,2488.2,0.55069254]
[1747771449804,1.4055,2488.3,2488.2,0.55069254]
[1747771449998,1.3538,2488.5,2488.4,0.8034]
[1747771450308,7e-06,2488.6,2488.5,0.80337]
[1747771450504,7e-06,2488.6,2488.5,15.77767]
[1747771450702,1.32179455,2489.1,2488.9,0.80322]
[1747771450894,1.32179455,2489.1,2488.5,20.77767]
[1747771450895,2.15702,2489.0,2488.6,3.2078]
[1747771451099,1.3538,2489.0,2488.7,32.2573]
[1747771451299,1.3538,2489.0,2488.9,0.80324]
[1747771451904,1.32179455,2489.1,2489.0,0.8032]
[1747771452106,1.32179455,2489.1,2489.0,2.2145]
[1747771452307,1.32179455,2489.1,2489.0,8.0462]
[1747771452700,1.32179455,2489.1,2489.0,8.36760641]
[1747771452905,0.006027,2489.2,2489.1,0.80317]
[1747771453112,1.65224319,2489.4,2489.2,0.80311]
[1747771453307,1.65224319,2489.4,2489.3,18.78991]
[1747771453507,5.39022,2489.6,2489.4,0.80307]
[1747771453810,4.5872,2489.6,2489.5,0.80304]
[1747771454205,4.5872,2489.6,2489.1,1.09810641]
[1747771454408,0.80314,2489.2,2489.1,0.32140641]
[1747771454612,4.01092,2489.3,2489.1,17.00940641]
[1747771454804,1.3794,2489.2,2489.1,17.00940641]
[1747771455106,1.3794,2489.2,2489.1,17.49117]
[1747771455297,1.3794,2489.2,2489.1,18.78997]
[1747771456404,3.2078,2489.6,2489.1,18.78997]
[1747771456607,0.006027,2489.8,2489.2,2.00783]
[1747771456902,0.006027,2489.8,2489.7,0.80298]
[1747771457104,0.808977,2489.8,2489.7,16.686]
[1747771457304,4.016777,2489.8,2489.7,16.686]
[1747771459008,3.213827,2489.8,2489.7,17.48898]
[1747771459405,3.213827,2489.8,2489.7,17.48698]
[1747771459705,4.631127,2489.8,2489.7,17.48698]
[1747771460209,4.631127,2489.8,2489.7,16.684]
[1747771460407,3.213827,2489.8,2489.7,17.48698]
[1747771460601,0.006027,2489.8,2489.7,17.48698]
[1747771460797,0.006027,2489.8,2489.5,0.006027]
[1747771460798,2.014262,2489.8,2489.5,0.006027]
[1747771461005,2.22028,2489.7,2489.6,16.684]
[1747771461208,5.42808,2489.7,2489.6,16.684]
[1747771461411,7.436395,2489.7,2489.6,16.684]
[1747771462008,4.6251,2489.7,2489.6,16.684]
[1747771462205,4.6251,2489.7,2489.6,17.48701]
[1747771462406,5.42808,2489.7,2489.6,16.684]
[1747771462707,5.42808,2489.7,2489.6,14.38015195]
[1747771462906,4.6251,2489.7,2489.6,15.18316195]
[1747771463116,4.6251,2489.7,2489.6,16.50316195]
[1747771463511,0.006027,2489.8,2489.7,0.80298]
[1747771463706,0.006027,2489.8,2489.7,4.01078]
[1747771464011,0.006027,2489.8,2489.7,31.04198]
[1747771464315,1.417527,2489.8,2489.7,31.04198]
[1747771464816,3.2078,2490.6,2489.9,2.00725]
[1747771465003,1.4123,2490.5,2490.4,0.80275]
[1747771465202,1.4123,2490.5,2490.4,17.48375]
[1747771465413,0.8238,2491.1,2490.5,2.00677]
[1747771465607,3.2078,2490.9,2490.6,0.80267]
[1747771465806,2.21494,2490.8,2490.7,0.80266]
[1747771466012,0.80266,2490.7,2490.5,0.8027]
[1747771466209,1.4123,2490.6,2490.5,14.35672]
[1747771466404,1.4123,2490.6,2490.5,31.03772]
[1747771467016,1.4123,2490.6,2490.5,17.80489786]
[1747771468314,3.2078,2490.9,2490.8,0.80262]
[1747771468520,1.3275,2490.8,2490.5,17.00217786]
[1747771468811,4.01049,2490.6,2490.5,0.32117786]
[1747771469016,4.01049,2490.6,2490.5,16.99917786]
[1747771469318,6.01808,2490.6,2490.5,16.99917786]
[1747771470817,6.01808,2490.6,2490.5,0.32117786]
[1747771471004,7.32958,2490.6,2490.5,0.32117786]
[1747771473117,12.32958,2490.6,2490.5,0.32117786]
[1747771474216,0.00397731,2491.0,2490.9,0.80259]
[1747771474416,3.21177731,2491.0,2490.9,16.75759]
[1747771475318,5.21904231,2491.0,2490.5,40.472]
[1747771475624,0.00397731,2491.0,2490.9,16.75759]
[1747771475819,2.0059,2491.7,2490.9,16.75759]
[1747771475820,4.86004319,2492.1,2490.9,56.52899916]
[1747771476118,1.65224319,2492.1,2492.0,0.80224]
[1747771476314,1.65224319,2492.1,2492.0,16.75724]
[1747771476817,1.65224319,2492.1,2492.0,15.955]
[1747771477020,2.6516461,2493.5,2492.9,0.80195]
[1747771477220,2.6516461,2493.5,2492.9,16.75395]
[1747771477421,0.80184,2493.3,2492.9,19.96175]
[1747771477621,2.6516461,2493.5,2492.9,19.96175]
[1747771477818,2.76854672,2493.0,2492.9,15.952]
[1747771478018,1.96662672,2493.0,2492.8,0.80196]
[1747771478221,0.80188,2493.2,2492.9,15.952]
[1747771478524,0.80188,2493.1,2493.0,15.952]
[1747771479120,3.92404936,2493.7,2493.6,0.80172]
[1747771479121,1.6072287,2493.7,2493.6,0.80172]
[1747771479310,3.2078,2494.5,2493.7,2.00423]
[1747771479513,3.2078,2494.5,2494.1,0.97990264]
[1747771479714,3.2078,2494.5,2494.0,3.2078]
[1747771479715,0.80147,2494.4,2494.2,15.952]
[1747771480114,7.00457,2494.4,2493.7,13.548]
[1747771480314,0.80158,2494.1,2493.8,16.92690264]
[1747771480519,0.80159,2494.0,2493.9,16.21882254]
[1747771480918,2.00485001,2494.0,2493.9,16.21882254]
[1747771481520,3.2078,2494.2,2494.1,0.80156]
[1747771481715,5.21257,2494.2,2494.1,0.80156]
[1747771481919,5.21257,2494.2,2494.1,16.74856]
[1747771482625,3.2078,2494.6,2494.1,0.97990264]
[1747771482828,0.80144,2494.5,2494.2,1.78141264]
[1747771483123,5.21233,2494.6,2494.2,0.97990264]
[1747771483329,6.01375,2494.6,2494.1,15.941]
[1747771483519,0.80144,2494.5,2494.2,1.78142264]
[1747771483718,6.01374,2494.6,2494.3,0.80149]
[1747771484524,5.21233,2494.6,2494.0,4.551]
[1747771484827,0.80152,2494.3,2494.1,16.92090264]
[1747771485128,5.21233,2494.6,2494.1,15.941]
[1747771485321,0.80144,2494.5,2494.1,15.941]
[1747771485522,0.80144,2494.5,2494.1,15.46508655]
[1747771485728,1.2867,2494.4,2494.2,1.78140264]
[1747771485927,2.08817,2494.4,2494.2,1.78140264]
[1747771486129,4.09274,2494.4,2494.2,0.8015]
[1747771486329,0.8015,2494.3,2494.1,16.26663655]
[1747771486532,2.10916,2494.2,2494.1,0.97990264]
[1747771486827,2.10916,2494.2,2494.1,16.91790264]
[1747771487034,4.11385,2494.2,2494.1,16.91790264]
[1747771487626,3.31229,2494.2,2494.1,18.04010568]
[1747771487828,4.11382,2494.2,2494.1,17.23854568]
[1747771488037,2.10913,2494.2,2494.1,17.23854568]
[1747771488827,2.10913,2494.2,2494.1,0.32064304]
[1747771489030,9.11382,2494.2,2494.1,16.25564304]
[1747771489831,9.11382,2494.2,2494.1,0.32064304]
[1747771490024,0.80166,2493.8,2493.7,0.27182254]
[1747771490327,0.80175,2493.5,2493.4,0.006027]
[1747771490635,4.00955,2493.5,2493.4,0.006027]
[1747771490931,11.014805,2493.5,2493.4,0.006027]
[1747771491636,6.014805,2493.5,2493.4,0.006027]
[1747771491831,2.00448,2493.4,2492.5,3.57155807]
[1747771492031,3.2078,2493.2,2492.5,0.36375807]
[1747771492233,4.00984,2492.6,2492.5,0.36375807]
[1747771492832,11.01582,2492.6,2492.5,0.36375807]
[1747771493336,0.80211,2492.4,2492.3,0.00601431]
[1747771493639,2.80825,2492.4,2492.3,0.00601431]
[1747771493822,2.00614,2492.4,2492.3,0.00601431]
[1747771494235,2.80825,2492.4,2492.3,0.00601431]
[1747771496038,0.80223,2492.1,2491.9,0.97990264]
[1747771496223,0.80224,2492.0,2491.9,1.78216264]
[1747771496531,6.50873,2492.3,2491.6,3.57155807]
[1747771496722,2.00544,2492.2,2491.7,17.72023264]
[1747771496929,1.2955,2492.1,2491.8,0.8023]
[1747771497131,0.8023,2491.8,2491.7,16.74633431]
[1747771497338,3.302,2492.1,2491.7,16.74633431]
[1747771497836,0.8023,2491.8,2491.7,16.74633431]
[1747771498036,0.8023,2491.8,2491.7,15.94401431]
[1747771498336,2.80892,2491.8,2491.7,15.94501431]
[1747771499126,2.80892,2491.8,2491.7,16.74734431]
[1747771499528,2.80892,2491.8,2491.7,15.94501431]
[1747771499724,2.80892,2491.8,2491.7,16.74734431]
[1747771499930,2.80892,2491.8,2491.7,0.00601431]
[1747771500127,2.00662,2491.8,2491.7,0.80834431]
[1747771500330,4.01005,2492.0,2491.9,0.80227]
[1747771500536,3.2078,2492.4,2492.1,2.00552]
[1747771500746,3.2078,2492.4,2492.3,1.78204264]
[1747771500943,0.80208,2492.5,2492.4,0.80211]
[1747771501143,1.3041,2492.7,2492.3,0.97990264]
[1747771501144,0.80206,2492.6,2492.5,1.78195264]
[1747771501342,1.3041,2492.7,2492.5,0.97990264]
[1747771501545,1.3041,2492.7,2492.3,1.2946]
[1747771501840,0.80208,2492.6,2492.5,0.80208]
[1747771502042,1.3041,2492.7,2492.6,0.97990264]
[1747771502244,1.3041,2492.7,2492.6,1.78194264]
[1747771502548,4.112005,2492.7,2492.6,1.78194264]
[1747771503046,4.112005,2492.7,2492.6,0.97990264]
[1747771503443,3.309995,2492.7,2492.6,0.97990264]
[1747771503650,4.112005,2492.7,2492.6,1.30075932]
[1747771504049,2.10611,2492.7,2492.6,1.30075932]
[1747771504748,1.3041,2492.7,2492.6,2.10279932]
[1747771505049,0.00598471,2492.8,2492.6,2.62175932]
[1747771505246,5.32301,2492.7,2492.6,0.32085668]
[1747771505454,5.32301,2492.7,2492.2,0.36375807]
[1747771505455,0.80214,2492.3,2492.2,0.36375807]
[1747771505638,4.00994,2492.3,2492.2,0.36375807]
[1747771505843,9.00994,2492.3,2492.2,0.36375807]
[1747771506247,2.00549,2492.2,2491.7,0.80833431]
[1747771506549,0.8023,2491.8,2491.7,1.78824695]
[1747771506846,0.8023,2491.8,2491.7,0.00601431]
[1747771507049,5.8023,2491.8,2491.7,0.98591695]
[1747771507249,5.8023,2491.8,2491.7,0.00601431]